[Event "GER-ch Youth-U10 2022"]
[Site "Willingen"]
[Date "2022.06.09"]
[Round "8.12"]
[White "Rudolph, Simon"]
[Black "Fadeev, Justin Michael"]
[Result "0-1"]
[ECO "B34"]
[WhiteElo "1361"]
[BlackElo "1320"]
[Annotator "NA RC COMBH"]
[PlyCount "52"]
[EventDate "2022.06.05"]
[EventType "swiss"]
[EventRounds "11"]
[EventCountry "GER"]
[SourceTitle "playchess.com"]
[Source "ChessBase"]
[SourceQuality "1"]
[TimeControl "40/4500+30:900+30"]

1. e4 {[%emt 0:00:01]} c5 {[%emt 0:00:02]} 2. Nf3 {[%emt 0:00:08]} Nc6 {[%emt 0:00:10]} 3. d4 {[%emt 0:00:06]} cxd4 {[%emt 0:00:05]} 4. Nxd4 {[%emt 0:00:04]} g6 {[%emt 0:00:05]} 5. Nc3 {[%emt 0:00:17]} Bg7 {[%emt 0:00:20]} 6. Be3 {[%emt 0:00:23]} Nf6 {[%emt 0:00:13]} 7. f3 {[%emt 0:00:26]} O-O {[%emt 0:00:15]} 8. Qd2 {[%emt 0:00:22]} d5 {[%emt 0:00:21]} 9. exd5 {[%emt 0:00:54]} Nxd5 {[%emt 0:00:07]} 10. Nxc6 {[%emt 0:03:05]} bxc6 {[%emt 0:00:49]} 11. Nxd5 {[%emt 0:02:02]} cxd5 {[%emt 0:00:43]} 12. c3 {[%emt 0:02:16]} e5 {[%emt 0:05:03]} 13. Bb5 {[%emt 0:02:47]} d4 {[%emt 0:02:41]} 14. cxd4 {[%emt 0:02:19]} exd4 {[%emt 0:01:08]} 15. Bf4 {[%emt 0:01:57]} Qe7+ {[%emt 0:04:03]} 16. Kf2 {[%emt 0:02:22]} Bb7 {[%emt 0:03:23]} 17. Rhe1 {[%emt 0:01:48]} Qc5 {[%emt 0:13:32]} 18. Bd3 {[%emt 0:09:51]} Rfe8 {[%emt 0:10:56]} 19. Rac1 {[%emt 0:04:34]} Qb6 {[%emt 0:00:43]} 20. Bc7 {[%emt 0:04:08]} Qf6 {[%emt 0:00:35]} 21. Rxe8+ {[%emt 0:01:27]} Rxe8 {[%emt 0:02:40]} 22. Bb5 {[%emt 0:05:06]} Re3 {[%emt 0:01:50]} 23. Bg3 {[%emt 0:06:33]} Bh6 {[%emt 0:12:49]} 24. Qc2 {[%emt 0:11:14]} d3 {[%emt 0:10:54]} 25. Qc7 {[%emt 0:08:23]} Rxf3+ {[%emt 0:00:53]} 26. gxf3 {[%emt 0:00:20]} Qxf3+ {[%emt 0:00:06]} 0-1

[Event "GER-ch Youth-U10 2022"]
[Site "Willingen"]
[Date "2022.06.09"]
[Round "8.13"]
[White "Teng, David"]
[Black "Belin, Anton"]
[Result "0-1"]
[ECO "C65"]
[WhiteElo "1423"]
[BlackElo "1213"]
[Annotator "NA RC COMBH"]
[PlyCount "74"]
[EventDate "2022.06.05"]
[EventType "swiss"]
[EventRounds "11"]
[EventCountry "GER"]
[SourceTitle "playchess.com"]
[Source "ChessBase"]
[SourceQuality "1"]
[TimeControl "40/4500+30:900+30"]

1. e4 {[%emt 0:00:01]} e5 {[%emt 0:00:09]} 2. Nf3 {[%emt 0:00:10]} Nc6 {[%emt 0:00:02]} 3. Bb5 {[%emt 0:00:22]} Nf6 {[%emt 0:00:38]} 4. O-O {[%emt 0:00:23]} Bc5 {[%emt 0:00:14]} 5. Bxc6 {[%emt 0:01:39]} dxc6 {[%emt 0:00:06]} 6. Nxe5 {[%emt 0:00:19]} Nxe4 {[%emt 0:00:31]} 7. Qe2 {[%emt 0:01:08]} Qd5 {[%emt 0:01:13]} 8. Nd3 {[%emt 0:01:47]} O-O {[%emt 0:00:25]} 9. Nxc5 {[%emt 0:00:46]} Nxc5 {[%emt 0:00:08]} 10. Nc3 {[%emt 0:01:05]} Qd6 {[%emt 0:01:57]} 11. b3 {[%emt 0:02:15]} Bf5 {[%emt 0:00:26]} 12. Ba3 {[%emt 0:01:37]} b6 {[%emt 0:02:09]} 13. Qe3 {[%emt 0:07:09]} Rfe8 {[%emt 0:01:31]} 14. Qg5 {[%emt 0:05:34]} Bxc2 {[%emt 0:00:47]} 15. Rac1 {[%emt 0:02:49]} Re5 {[%emt 0:01:12]} 16. Qf4 {[%emt 0:03:19]} Bd3 {[%emt 0:00:27]} 17. Rfd1 {[%emt 0:01:48]} Re1+ {[%emt 0:00:44]} 18. Rxe1 {[%emt 0:00:34]} Qxf4 {[%emt 0:00:06]} 19. Re7 {[%emt 0:01:30]} Ba6 {[%emt 0:00:39]} 20. Rce1 {[%emt 0:01:49]} Kf8 {[%emt 0:00:39]} 21. b4 {[%emt 0:07:43]} Nd3 {[%emt 0:00:48]} 22. R1e2 {[%emt 0:04:07]} Nxb4 {[%emt 0:01:32]} 23. R7e4 {[%emt 0:02:53]} Qf5 {[%emt 0:01:06]} 24. Bxb4+ {[%emt 0:02:50]} c5 {[%emt 0:00:07]} 25. Re1 {[%emt 0:03:16]} cxb4 {[%emt 0:00:16]} 26. Re5 {[%emt 0:01:00]} Qc2 {[%emt 0:01:21]} 27. Nd5 {[%emt 0:00:58]} f6 {[%emt 0:00:26]} 28. Re7 {[%emt 0:02:35]} Rd8 {[%emt 0:01:30]} 29. Nxc7 {[%emt 0:02:53]} Qxa2 {[%emt 0:00:15]} 30. R7e3 {[%emt 0:03:40]} Rxd2 {[%emt 0:00:40]} 31. Ne6+ {[%emt 0:00:46]} Kf7 {[%emt 0:00:10]} 32. Nf4 {[%emt 0:01:42]} Rd7 {[%emt 0:00:17]} 33. Ne6 {[%emt 0:05:37]} b3 {[%emt 0:00:19]} 34. Rg3 {[%emt 0:04:33]} g6 {[%emt 0:00:12]} 35. Rh3 {[%emt 0:00:35]} h5 {[%emt 0:00:06]} 36. Rf3 {[%emt 0:00:52]} b2 {[%emt 0:00:11]} 37. Ng5+ {[%emt 0:00:55]} Kg7 {[%emt 0:00:07]} 0-1

[Event "GER-ch Youth-U10 2022"]
[Site "Willingen"]
[Date "2022.06.09"]
[Round "8.14"]
[White "Kutz, Paul Matti"]
[Black "Chua, Daniel James"]
[Result "1-0"]
[ECO "C60"]
[WhiteElo "1202"]
[BlackElo "1314"]
[Annotator "NA RC COMBH"]
[PlyCount "69"]
[EventDate "2022.06.05"]
[EventType "swiss"]
[EventRounds "11"]
[EventCountry "GER"]
[SourceTitle "playchess.com"]
[Source "ChessBase"]
[SourceQuality "1"]
[TimeControl "40/4500+30:900+30"]

1. e4 {[%emt 0:00:03]} e5 {[%emt 0:00:01]} 2. Nf3 {[%emt 0:00:06]} Nc6 {[%emt 0:00:09]} 3. Bb5 {[%emt 0:00:06]} Nge7 {[%emt 0:00:09]} 4. c3 {[%emt 0:00:31]} d6 {[%emt 0:00:05]} 5. h3 {[%emt 0:00:17]} g6 {[%emt 0:00:33]} 6. d4 {[%emt 0:00:10]} Bd7 {[%emt 0:00:09]} 7. Bg5 {[%emt 0:00:22]} Bg7 {[%emt 0:00:35]} 8. O-O {[%emt 0:01:15]} O-O {[%emt 0:00:33]} 9. Bxc6 {[%emt 0:01:19]} Bxc6 {[%emt 0:01:43]} 10. dxe5 {[%emt 0:00:11]} Bxe4 {[%emt 0:00:07]} 11. exd6 {[%emt 0:01:39]} cxd6 {[%emt 0:00:13]} 12. Re1 {[%emt 0:02:11]} Bxf3 {[%emt 0:03:59]} 13. Qxf3 {[%emt 0:00:10]} f6 {[%emt 0:00:11]} 14. Qxb7 {[%emt 0:00:47]} fxg5 {[%emt 0:01:26]} 15. Rxe7 {[%emt 0:01:31]} Bf6 {[%emt 0:00:17]} 16. Rxh7 {[%emt 0:00:32]} Rb8 {[%emt 0:00:23]} 17. Qxa7 {[%emt 0:01:14]} Qe8 {[%emt 0:01:31]} 18. Nd2 {[%emt 0:01:17]} Rxb2 {[%emt 0:00:30]} 19. Nf3 {[%emt 0:00:14]} Bxc3 {[%emt 0:02:29]} 20. Nxg5 {[%emt 0:01:59]} Qe5 {[%emt 0:00:57]} 21. Nf7 {[%emt 0:02:23]} Kxh7 {[%emt 0:02:57]} 22. Nxe5+ {[%emt 0:00:08]} Kg8 {[%emt 0:00:20]} 23. Ng4 {[%emt 0:01:53]} Bg7 {[%emt 0:00:36]} 24. Re1 {[%emt 0:00:18]} Rfb8 {[%emt 0:04:18]} 25. Re7 {[%emt 0:00:27]} Rb1+ {[%emt 0:05:10]} 26. Kh2 {[%emt 0:00:09]} R8b7 {[%emt 0:09:51]} 27. Rxb7 {[%emt 0:00:15]} Rxb7 {[%emt 0:00:08]} 28. Qxb7 {[%emt 0:00:06]} Be5+ {[%emt 0:00:04]} 29. Nxe5 {[%emt 0:00:07]} dxe5 {[%emt 0:00:11]} 30. a4 {[%emt 0:00:05]} g5 {[%emt 0:00:07]} 31. a5 {[%emt 0:00:06]} g4 {[%emt 0:00:03]} 32. a6 {[%emt 0:00:07]} g3+ {[%emt 0:00:04]} 33. Kxg3 {[%emt 0:00:07]} e4 {[%emt 0:00:04]} 34. a7 {[%emt 0:00:05]} e3 {[%emt 0:00:08]} 35. a8=R# {[%emt 0:00:34]} 1-0

[Event "GER-ch Youth-U10 2022"]
[Site "Willingen"]
[Date "2022.06.09"]
[Round "8.15"]
[White "Tak, Rannveer"]
[Black "Wolf, Noah"]
[Result "0-1"]
[ECO "B26"]
[WhiteElo "1746"]
[BlackElo "1073"]
[Annotator "NA RC COMBH"]
[PlyCount "88"]
[EventDate "2022.06.05"]
[EventType "swiss"]
[EventRounds "11"]
[EventCountry "GER"]
[SourceTitle "playchess.com"]
[Source "ChessBase"]
[SourceQuality "1"]
[TimeControl "40/4500+30:900+30"]

1. e4 {[%emt 0:00:03]} c5 {[%emt 0:00:22]} 2. Nc3 {[%emt 0:00:27]} Nc6 {[%emt 0:00:00]} 3. g3 {[%emt 0:00:00]} g6 {[%emt 0:00:10]} 4. Bg2 {[%emt 0:00:14]} Bg7 {[%emt 0:00:37]} 5. d3 {[%emt 0:00:14]} e6 {[%emt 0:00:48]} 6. Be3 {[%emt 0:00:38]} d6 {[%emt 0:02:21]} 7. Qd2 {[%emt 0:00:38]} Rb8 {[%emt 0:00:49]} 8. Nge2 {[%emt 0:00:15]} Nd4 {[%emt 0:00:35]} 9. Nd1 {[%emt 0:02:08]} Ne7 {[%emt 0:01:13]} 10. Nc1 {[%emt 0:03:30]} b6 {[%emt 0:01:15]} 11. c3 {[%emt 0:00:18]} Nb5 {[%emt 0:00:43]} 12. Bh6 {[%emt 0:00:25]} O-O {[%emt 0:01:00]} 13. h4 {[%emt 0:00:14]} Kh8 {[%emt 0:02:18]} 14. Bxg7+ {[%emt 0:14:23]} Kxg7 {[%emt 0:00:38]} 15. h5 {[%emt 0:01:12]} Ng8 {[%emt 0:01:11]} 16. hxg6 {[%emt 0:01:41]} fxg6 {[%emt 0:01:12]} 17. Ne3 {[%emt 0:00:19]} Bb7 {[%emt 0:02:28]} 18. Ng4 {[%emt 0:02:17]} h5 {[%emt 0:09:29]} 19. Nh2 {[%emt 0:02:36]} Qf6 {[%emt 0:03:30]} 20. g4 {[%emt 0:01:51]} d5 {[%emt 0:01:54]} 21. gxh5 {[%emt 0:01:14]} dxe4 {[%emt 0:00:32]} 22. hxg6 {[%emt 0:08:55]} e3 {[%emt 0:02:54]} 23. Qxe3 {[%emt 0:01:30]} Bxg2 {[%emt 0:01:54]} 24. Rg1 {[%emt 0:00:39]} Bc6 {[%emt 0:03:47]} 25. Ne2 {[%emt 0:13:03]} Rbd8 {[%emt 0:09:01]} 26. Ng4 {[%emt 0:04:56]} Qf3 {[%emt 0:00:49]} 27. Qxe6 {[%emt 0:00:00]} Rde8 28. Qxe8 {[%emt 0:03:18]} Rxe8 {[%emt 0:07:16]} 29. Ne3 {[%emt 0:00:00]} Nf6 {[%emt 0:02:35]} 30. Rg3 {[%emt 0:00:00]} Rxe3 {[%emt 0:02:23]} 31. fxe3 {[%emt 0:00:00]} Qh1+ {[%emt 0:00:20]} 32. Rg1 {[%emt 0:00:00]} Qh4+ {[%emt 0:00:52]} 33. Kd2 {[%emt 0:00:00]} c4 {[%emt 0:02:16]} 34. dxc4 {[%emt 0:06:23]} Ne4+ {[%emt 0:00:30]} 35. Kd3 {[%emt 0:01:59]} Nf2+ {[%emt 0:02:57]} 36. Kd2 {[%emt 0:01:51]} Qxc4 {[%emt 0:01:19]} 37. Nf4 {[%emt 0:00:26]} Bf3 {[%emt 0:03:22]} 38. Raf1 {[%emt 0:01:11]} Ne4+ {[%emt 0:01:01]} 39. Kc2 {[%emt 0:03:10]} Na3+ {[%emt 0:03:35]} 40. Kc1 {[%emt 0:03:09]} Qxa2 {[%emt 0:03:01]} 41. Ne6+ {[%emt 0:16:27]} Kg8 {[%emt 0:14:23]} 42. bxa3 {[%emt 0:03:14]} Qd2+ {[%emt 0:00:42]} 43. Kb1 {[%emt 0:00:06]} Nxc3+ {[%emt 0:00:20]} 44. Ka1 {[%emt 0:00:12]} Qa2# {[%emt 0:01:18]} 0-1

[Event "GER-ch Youth-U10 2022"]
[Site "Willingen"]
[Date "2022.06.09"]
[Round "8.16"]
[White "Van 't Hof, Eric"]
[Black "Fels, Mattis"]
[Result "1-0"]
[ECO "B48"]
[WhiteElo "2081"]
[BlackElo "1395"]
[Annotator "TA"]
[PlyCount "109"]
[EventDate "2022.06.05"]
[EventType "swiss"]
[EventRounds "11"]
[EventCountry "GER"]
[SourceTitle "playchess.com"]
[Source "ChessBase"]
[SourceQuality "1"]
[TimeControl "40/4500+30:900+30"]

{[%evp 15,108,8,34,35,32,13,89,18,171,6,10,-8,0,-6,-12,-87,135,130,129,127,138,129,141,137,237,173,180,44,243,247,1415,701,564,377,385,324,322,187,264,85,245,243,338,332,331,331,302,207,563,558,788,358,805,790,923,908,911,910,878,860,4119,2175,12843,12842,12841,12841,12847,12847,12848,12848,12849,12845,12845,12846,29986,29987,29987,12850,27999,27999,27999,27999,27999,27998,27999,27999,27999,27998,27999,27999,27999,27999,27999,27999,29999]} 1. e4 {[%emt 0:00:03]} c5 {[%emt 0:00:07]} 2. Nf3 {[%emt 0:00:08]} e6 {[%emt 0:00:12]} 3. d4 {[%emt 0:00:07]} cxd4 {[%emt 0:00:06]} 4. Nxd4 {[%emt 0:00:09]} Nc6 {[%emt 0:00:13]} 5. Nc3 {[%emt 0:00:09]} Qc7 {[%emt 0:00:51]} 6. Be3 {[%emt 0:00:11]} a6 {[%emt 0:00:16]} 7. Qd2 {[%emt 0:07:02]} b5 {[%emt 0:04:57]} 8. Nxc6 {[%emt 0:12:58]} Qxc6 {[%emt 0:03:39]} 9. Bd3 {[%emt 0:01:05] B48: Sicilian: Taimanov: 5 Nc3 Qc7 6 Be3 a6 without Be2.} Nf6 {[%emt 0:02:47]} 10. f3 {[%emt 0:11:37] [#]} d5 $146 {[%emt 0:05:18]} (10... Bb7 $11) ({Predecessor:} 10... Bb7 11. O-O Be7 12. a3 O-O 13. Rad1 Rfc8 14. e5 Nd5 15. Nxd5 Qxd5 16. Be4 Qxd2 17. Rxd2 Bxe4 18. fxe4 {1-0 (40) Pons,F (1261)-Jostov,K (1096) LSS email 2013}) 11. O-O-O {[%emt 0:06:03]} (11. exd5 $1 $16 exd5 12. Bd4) 11... Bb4 $2 {[%emt 0:04:55] [#]} (11... b4 $1 $11 {and Black is okay.} 12. Ne2 Bb7) 12. e5 $2 {[%emt 0:06:38]} (12. Bd4 $1 $18) 12... Nd7 $11 {[%emt 0:05:15]} 13. Bd4 {[%emt 0:00:38]} O-O {[%emt 0:07:09]} 14. h4 {[%emt 0:01:05]} Nc5 {[%emt 0:11:09]} 15. a3 {[%emt 0:01:07]} (15. Kb1 $11 {remains equal.}) 15... Ba5 $2 {[%emt 0:00:33]} (15... Nxd3+ $17 {stays on course.} 16. Qxd3 Be7) 16. Bxc5 $16 {[%emt 0:00:24]} Qxc5 {[%emt 0:00:32]} 17. b4 {[%emt 0:00:35] White is more active.} Bxb4 {[%emt 0:00:12]} 18. axb4 {[%emt 0:00:22]} Qxb4 {[%emt 0:00:09]} 19. Nb1 {[%emt 0:01:15] Inhibits Qa3+.} Qa4 {[%emt 0:02:13]} (19... Qc5 $16) 20. g4 {[%emt 0:03:48]} Bd7 {[%emt 0:05:20]} 21. g5 {[%emt 0:01:21]} ({Better is} 21. h5 $18) 21... Rac8 $2 {[%emt 0:01:37] [#]} (21... b4 $1 $14) 22. h5 $1 $18 {[%emt 0:01:33]} g6 $2 {[%emt 0:00:36]} (22... Kh8 23. Qe3 (23. h6 g6 $16) 23... a5) 23. hxg6 {[%emt 0:01:04]} (23. Qh2 $142 Rfe8 24. hxg6) 23... fxg6 {[%emt 0:00:08]} 24. Qh2 {[%emt 0:01:14][%csl Gh1][%cal Rh2h7]} Qf4+ {[%emt 0:00:56]} 25. Qxf4 {[%emt 0:00:18]} Rxf4 {[%emt 0:00:06]} 26. Rhf1 {[%emt 0:01:48]} (26. Nd2 $142) 26... Bc6 {[%emt 0:07:25]} (26... Rh4 $142 27. Rh1 Rxh1 28. Rxh1 a5) 27. Be2 $2 {[%emt 0:01:27]} (27. Nc3 $18 {has better winning chances.}) 27... Rf5 $2 {[%emt 0:02:08]} (27... a5 $16 {was necessary.}) 28. f4 {[%emt 0:00:25] Black must now prevent Bg4.} Rcf8 {[%emt 0:01:22]} 29. Rd4 {[%emt 0:00:27]} ({But not} 29. Bg4 Rxf4 30. Bxe6+ Kg7 31. Rxf4 Rxf4 $18) 29... Kg7 {[%emt 0:00:54]} 30. Bd3 {[%emt 0:01:54]} R5f7 {[%emt 0:00:11]} 31. Nc3 {[%emt 0:01:05]} h6 $2 {[%emt 0:01:03]} (31... Rb8 {is more resistant.} 32. Nd1 a5) 32. gxh6+ {[%emt 0:00:39]} Kxh6 {[%emt 0:00:12]} 33. Rh1+ {[%emt 0:00:32]} Kg7 {[%emt 0:00:10]} 34. Rg1 {[%emt 0:00:25]} Rxf4 {[%emt 0:04:36]} 35. Rxg6+ {[%emt 0:00:13]} Kh8 {[%emt 0:00:08]} 36. Rxf4 {[%emt 0:00:25]} Rxf4 {[%emt 0:00:07]} 37. Rxe6 {[%emt 0:00:21]} Bd7 {[%emt 0:00:40]} 38. Rxa6 {[%emt 0:00:50]} b4 {[%emt 0:00:27]} 39. Nxd5 {[%emt 0:00:29]} Rd4 {[%emt 0:00:37]} 40. Rh6+ {[%emt 0:01:11]} Kg7 {[%emt 0:00:51]} 41. Rh7+ {[%emt 0:15:17]} Kf8 {[%emt 0:15:23]} 42. Rxd7 {[%emt 0:00:28] Intending Bg6 and mate.} b3 {[%emt 0:00:10]} 43. Nf6 {[%emt 0:01:43]} b2+ {[%emt 0:00:28]} 44. Kb1 {[%emt 0:01:24]} Rxd7 {[%emt 0:00:31]} 45. Nxd7+ {[%emt 0:00:09]} Ke7 {[%emt 0:00:27]} 46. Bc4 {[%emt 0:00:28]} Kxd7 {[%emt 0:00:16][%mdl 4096] Endgame KB-KP} 47. e6+ {[%emt 0:00:12] White mates.} Ke7 {[%emt 0:00:05]} 48. Kxb2 {[%emt 0:00:08]} Kd6 {[%emt 0:00:11]} 49. Kc3 {[%emt 0:00:13]} Ke7 {[%emt 0:00:06]} 50. Kd4 {[%emt 0:00:10]} Kd6 {[%emt 0:00:06]} 51. c3 {[%emt 0:00:19]} Ke7 {[%emt 0:00:38]} 52. Ke5 {[%emt 0:00:09]} Ke8 {[%emt 0:00:30]} 53. Kf6 {[%emt 0:00:11]} Kf8 {[%emt 0:00:20]} 54. e7+ {[%emt 0:00:09]} Ke8 {[%emt 0:00:00]} 55. Bb5# {[%emt 0:00:07] Weighted Error Value: White=0.53/Black=1.05} 1-0

[Event "GER-ch Youth-U10 2022"]
[Site "Willingen"]
[Date "2022.06.09"]
[Round "8.17"]
[White "Vu, Khoi Nguyen"]
[Black "Wagener, Nicolas"]
[Result "1-0"]
[ECO "B43"]
[WhiteElo "1627"]
[BlackElo "1315"]
[Annotator "NA RC COMBH"]
[PlyCount "121"]
[EventDate "2022.06.05"]
[EventType "swiss"]
[EventRounds "11"]
[EventCountry "GER"]
[SourceTitle "playchess.com"]
[Source "ChessBase"]
[SourceQuality "1"]
[TimeControl "40/4500+30:900+30"]

1. e4 {[%emt 0:00:02]} c5 {[%emt 0:00:04]} 2. Nf3 {[%emt 0:00:04]} e6 {[%emt 0:00:41]} 3. d4 {[%emt 0:00:39]} cxd4 {[%emt 0:00:33]} 4. Nxd4 {[%emt 0:00:47]} a6 {[%emt 0:00:47]} 5. Nc3 {[%emt 0:00:39]} Qc7 {[%emt 0:00:13]} 6. Bd3 {[%emt 0:01:01]} Bc5 {[%emt 0:00:06]} 7. Nb3 {[%emt 0:00:48]} Ba7 {[%emt 0:00:07]} 8. O-O {[%emt 0:01:24]} b5 {[%emt 0:00:28]} 9. Qe2 {[%emt 0:02:45]} d6 {[%emt 0:00:10]} 10. Re1 {[%emt 0:02:09]} Nc6 {[%emt 0:00:31]} 11. Kh1 {[%emt 0:04:24]} Bb7 {[%emt 0:00:20]} 12. Be3 {[%emt 0:01:48]} Bxe3 {[%emt 0:00:16]} 13. Qxe3 {[%emt 0:00:09]} Nf6 {[%emt 0:00:19]} 14. f4 {[%emt 0:00:51]} h5 {[%emt 0:00:30]} 15. h3 {[%emt 0:02:01]} h4 {[%emt 0:07:38]} 16. e5 {[%emt 0:03:17]} Nh5 {[%emt 0:00:11]} 17. Bxb5 {[%emt 0:09:26]} d5 {[%emt 0:01:56]} 18. Bxc6+ {[%emt 0:02:11]} Qxc6 {[%emt 0:01:35]} 19. Na5 {[%emt 0:06:52]} d4 {[%emt 0:01:39]} 20. Nxc6 {[%emt 0:03:43]} dxe3 {[%emt 0:00:10]} 21. Na5 {[%emt 0:01:39]} Bc8 {[%emt 0:01:13]} 22. Rxe3 {[%emt 0:01:10]} Nxf4 {[%emt 0:00:18]} 23. Rf1 {[%emt 0:00:22]} Ng6 {[%emt 0:00:13]} 24. Nc4 {[%emt 0:00:10]} O-O {[%emt 0:00:47]} 25. Nd6 {[%emt 0:03:58]} Rb8 {[%emt 0:00:35]} 26. b3 {[%emt 0:01:26]} Rb6 {[%emt 0:01:11]} 27. Na4 {[%emt 0:00:36]} Rc6 {[%emt 0:00:38]} 28. c4 {[%emt 0:00:25]} Nxe5 {[%emt 0:02:01]} 29. Nxc8 {[%emt 0:00:47]} Nxc4 {[%emt 0:00:30]} 30. Ne7+ {[%emt 0:00:28]} Kh7 {[%emt 0:00:19]} 31. Re4 {[%emt 0:00:05]} g5 {[%emt 0:02:01]} 32. Nxc6 {[%emt 0:00:32]} Nd2 {[%emt 0:00:19]} 33. Ree1 {[%emt 0:00:30]} Nxf1 {[%emt 0:00:25]} 34. Rxf1 {[%emt 0:00:47]} Rc8 {[%emt 0:00:26]} 35. Rxf7+ {[%emt 0:00:21]} Kg6 {[%emt 0:00:31]} 36. Ne7+ {[%emt 0:00:11]} Kxf7 {[%emt 0:00:07]} 37. Nxc8 {[%emt 0:00:07]} Kf6 {[%emt 0:00:12]} 38. Kg1 {[%emt 0:00:39]} Ke5 {[%emt 0:00:08]} 39. Kf2 {[%emt 0:00:08]} Kf4 {[%emt 0:00:11]} 40. Nc5 {[%emt 0:00:08]} e5 {[%emt 0:00:11]} 41. Ne7 {[%emt 0:15:30]} e4 {[%emt 0:15:30]} 42. Nd5+ {[%emt 0:00:21]} Ke5 {[%emt 0:00:16]} 43. Ne3 {[%emt 0:00:10]} a5 {[%emt 0:00:21]} 44. Nc4+ {[%emt 0:00:40]} Kd4 {[%emt 0:00:10]} 45. Ne6+ {[%emt 0:00:18]} Kd5 {[%emt 0:00:10]} 46. Nxg5 {[%emt 0:00:07]} a4 {[%emt 0:00:13]} 47. bxa4 {[%emt 0:00:13]} Kxc4 {[%emt 0:00:05]} 48. Nxe4 {[%emt 0:00:07]} Kb4 {[%emt 0:00:08]} 49. g4 {[%emt 0:00:05]} hxg3+ {[%emt 0:00:14]} 50. Kxg3 {[%emt 0:00:09]} Kxa4 {[%emt 0:00:06]} 51. h4 {[%emt 0:00:05]} Ka3 {[%emt 0:00:06]} 52. h5 {[%emt 0:00:05]} Kxa2 {[%emt 0:00:09]} 53. h6 {[%emt 0:00:03]} Kb3 {[%emt 0:00:05]} 54. h7 {[%emt 0:00:04]} Kc4 {[%emt 0:00:16]} 55. h8=Q {[%emt 0:00:09]} Kd5 {[%emt 0:00:03]} 56. Kf4 {[%emt 0:00:18]} Kc4 {[%emt 0:00:09]} 57. Qc8+ {[%emt 0:00:09]} Kb5 {[%emt 0:00:06]} 58. Qc5+ {[%emt 0:00:20]} Ka6 {[%emt 0:00:06]} 59. Qb4 {[%emt 0:00:28]} Ka7 {[%emt 0:00:06]} 60. Nc5 {[%emt 0:00:11]} Ka8 {[%emt 0:00:07]} 61. Qb7# {[%emt 0:00:27]} 1-0

[Event "GER-ch Youth-U10 2022"]
[Site "Willingen"]
[Date "2022.06.09"]
[Round "8.18"]
[White "Heitmann, Erik"]
[Black "Wang, Kaiwen"]
[Result "1-0"]
[ECO "C54"]
[WhiteElo "1287"]
[BlackElo "1151"]
[Annotator "NA RC COMBH"]
[PlyCount "55"]
[EventDate "2022.06.05"]
[EventType "swiss"]
[EventRounds "11"]
[EventCountry "GER"]
[SourceTitle "playchess.com"]
[Source "ChessBase"]
[SourceQuality "1"]
[TimeControl "40/4500+30:900+30"]

1. e4 {[%emt 0:00:01]} e5 {[%emt 0:00:04]} 2. Nf3 {[%emt 0:00:09]} Nc6 {[%emt 0:00:07]} 3. Bc4 {[%emt 0:00:44]} Bc5 {[%emt 0:00:10]} 4. c3 {[%emt 0:00:13]} Nf6 {[%emt 0:00:06]} 5. d4 {[%emt 0:00:30]} exd4 {[%emt 0:00:07]} 6. e5 {[%emt 0:00:20]} d5 {[%emt 0:00:13]} 7. Bb5 {[%emt 0:00:23]} Ne4 {[%emt 0:00:16]} 8. cxd4 {[%emt 0:01:21]} Bb6 {[%emt 0:00:11]} 9. O-O {[%emt 0:01:07]} O-O {[%emt 0:00:32]} 10. Nc3 {[%emt 0:01:08]} Bg4 {[%emt 0:01:13]} 11. Bxc6 {[%emt 0:00:44]} bxc6 {[%emt 0:00:08]} 12. Be3 {[%emt 0:00:38]} f5 {[%emt 0:02:41]} 13. h3 {[%emt 0:00:58]} Bh5 {[%emt 0:00:33]} 14. Qa4 {[%emt 0:02:43]} Nxc3 {[%emt 0:03:28]} 15. bxc3 {[%emt 0:00:21]} Bxf3 {[%emt 0:00:28]} 16. gxf3 {[%emt 0:00:20]} f4 {[%emt 0:00:33]} 17. Bd2 {[%emt 0:00:17]} Qd7 {[%emt 0:00:32]} 18. Kh2 {[%emt 0:00:15]} Rf5 {[%emt 0:00:15]} 19. Rfe1 {[%emt 0:01:29]} Qe6 {[%emt 0:01:05]} 20. Rh1 {[%emt 0:01:49]} Rh5 {[%emt 0:03:52]} 21. Kg2 {[%emt 0:00:21]} Qg6+ {[%emt 0:00:28]} 22. Kh2 {[%emt 0:00:58]} Rf8 {[%emt 0:02:20]} 23. Rag1 {[%emt 0:00:29]} Qh6 {[%emt 0:02:14]} 24. Kg2 {[%emt 0:00:33]} c5 {[%emt 0:02:00]} 25. Qd7 {[%emt 0:04:34]} c6 {[%emt 0:01:01]} 26. e6 {[%emt 0:01:19]} Qg6+ {[%emt 0:00:55]} 27. Kh2 {[%emt 0:01:01]} Qf5 {[%emt 0:01:44]} 28. Qxg7# {[%emt 0:00:55]} 1-0